fUST/lending_fUST_20240810
["ID","MTS","AMOUNT","RATE_DAILY","PERIOD"]
[334573416,1723251043871,-500.0,0.00020821,3]
[334573418,1723251043882,-500.0,0.00020821,3]
[334573420,1723251043891,-1114.04,0.00020821,3]
[334573422,1723251043901,-500.0,0.00020821,3]
[334573424,1723251043910,-500.0,0.00020821,3]
[334573426,1723251043921,-500.0,0.00020821,3]
[334573428,1723251043931,-500.0,0.00020821,3]
[334573430,1723251043941,-1012.75,0.00020821,3]
[334573431,1723251043950,-500.0,0.00020821,3]
[334573432,1723251043960,-596.84,0.00020821,3]
[334573433,1723251043971,-501.94319757,0.00020821,3]
[334573434,1723251043982,-656.42,0.00020821,3]
[334573435,1723251043992,-500.0,0.00020821,3]
[334573436,1723251044001,-500.0,0.00020821,3]
[334573437,1723251044011,-500.0,0.00020821,3]
[334573438,1723251044021,-500.0,0.00020821,3]
[334573439,1723251044031,-700.54,0.00020821,3]
[334573440,1723251044040,-500.0,0.00020821,3]
[334573441,1723251044050,-712.29,0.00020821,3]
[334573442,1723251044060,-500.0,0.00020821,3]
[334573443,1723251044069,-500.0,0.00020821,3]
[334573444,1723251044078,-500.0,0.00020821,3]
[334573445,1723251044088,-500.0,0.00020821,3]
[334573446,1723251044097,-500.0,0.00020821,3]
[334573447,1723251044106,-500.0,0.00020821,3]
[334573448,1723251044116,-500.0,0.00020821,3]
[334573449,1723251044125,-500.0,0.00020821,3]
[334573450,1723251044135,-645.06501059,0.00020821,3]
[334573451,1723251044146,-500.0,0.00020821,3]
[334573452,1723251044158,-929.62,0.00020821,3]
[334573453,1723251044167,-500.0,0.00020821,3]
[334573454,1723251044176,-500.0,0.00020821,3]
[334573455,1723251044187,-500.0,0.00020821,3]
[334573456,1723251044198,-717.85,0.00020821,3]
[334573457,1723251044209,-500.0,0.00020821,3]
[334573458,1723251044220,-500.0,0.00020821,3]
[334573459,1723251044231,-500.0,0.00020821,3]
[334573460,1723251044243,-783.53,0.00020821,3]
[334573461,1723251044253,-500.0,0.00020821,3]
[334573462,1723251044262,-503.34647031,0.00020821,3]
[334573463,1723251044272,-841.07,0.00020821,3]
[334573464,1723251044282,-500.0,0.00020821,3]
[334573465,1723251044292,-500.0,0.00020821,3]
[334573466,1723251044301,-500.0,0.00020821,3]
[334573467,1723251044314,-502.99393493,0.00020821,3]
[334573468,1723251044324,-502.77305345,0.00020821,3]
[334573469,1723251044335,-500.0,0.00020821,3]
[334573470,1723251044345,-500.0,0.00020821,3]
[334573471,1723251044357,-500.0,0.00020821,3]
[334573472,1723251044367,-500.0,0.00020821,3]
[334573473,1723251044377,-841.0,0.00020821,3]
[334573474,1723251044387,-500.0,0.00020821,3]
[334573475,1723251044397,-500.0,0.00020821,3]
[334573476,1723251044406,-723.12,0.00020821,3]
[334573477,1723251044417,-500.0,0.00020821,3]
[334573478,1723251044426,-500.0,0.00020821,3]
[334573479,1723251044436,-500.0,0.00020821,3]
[334573480,1723251044446,-659.3,0.00020821,3]
[334573481,1723251044457,-790.15,0.00020821,3]
[334573482,1723251044467,-500.0,0.00020821,3]
[334573483,1723251044477,-500.0,0.00020821,3]
[334573484,1723251044487,-500.0,0.00020821,3]
[334573485,1723251044497,-500.0,0.00020821,3]
[334573486,1723251044507,-500.0,0.00020821,3]
[334573487,1723251044517,-500.0,0.00020821,3]
[334573488,1723251044527,-500.0,0.00020821,3]
[334573489,1723251044538,-597.05,0.00020821,3]
[334573490,1723251044549,-500.0,0.00020821,3]
[334573491,1723251044559,-500.0,0.00020821,3]
[334573492,1723251044570,-500.0,0.00020821,3]
[334573493,1723251044581,-502.23935167,0.00020821,3]
[334573494,1723251044591,-500.0,0.00020821,3]
[334573495,1723251044601,-500.0,0.00020821,3]
[334573496,1723251044612,-827.12,0.00020821,3]
[334573497,1723251044622,-504.15291028,0.00020821,3]
[334573498,1723251044632,-500.0,0.00020821,3]
[334573499,1723251044642,-500.0,0.00020821,3]
[334573500,1723251044654,-500.0,0.00020821,3]
[334573501,1723251044664,-815.83,0.00020821,3]
[334573502,1723251044675,-500.0,0.00020821,3]
[334573503,1723251044686,-501.73331655,0.00020821,3]
[334573504,1723251044696,-500.0,0.00020821,3]
[334573505,1723251044706,-500.0,0.00020821,3]
[334573506,1723251044717,-500.0,0.00020821,3]
[334573507,1723251044727,-500.0,0.00020821,3]
[334573508,1723251044737,-586.93,0.00020821,3]
[334573509,1723251044747,-509.73957821,0.00020821,3]
[334573510,1723251044757,-500.0,0.00020821,3]
[334573511,1723251044767,-500.0,0.00020821,3]
[334573512,1723251044778,-500.0,0.00020821,3]
[334573513,1723251044790,-507.75064182,0.00020821,3]
[334573514,1723251044799,-547.58029425,0.00020821,3]
[334573515,1723251044809,-500.0,0.00020821,3]
[334573516,1723251044820,-500.0,0.00020821,3]
[334573517,1723251044830,-775.22,0.00020821,3]
[334573518,1723251044840,-501.39102239,0.00020821,3]
[334573519,1723251044851,-500.0,0.00020821,3]
[334573520,1723251044861,-500.0,0.00020821,3]
[334573521,1723251044870,-502.49483689,0.00020821,3]
[334573522,1723251044880,-501.30250796,0.00020821,3]
[334573523,1723251044890,-500.0,0.00020821,3]
[334573524,1723251044900,-500.0,0.00020821,3]
[334573525,1723251044910,-500.0,0.00020821,3]
[334573526,1723251044920,-500.0,0.00020821,3]
[334573527,1723251044929,-500.0,0.00020821,3]
[334573528,1723251044939,-502.58535475,0.00020821,3]
[334573529,1723251044948,-500.0,0.00020821,3]
[334573530,1723251044958,-500.0,0.00020821,3]
[334573531,1723251044968,-527.030565,0.00020821,3]
[334573532,1723251044978,-501.21877884,0.00020821,3]
[334573533,1723251044988,-500.0,0.00020821,3]
[334573534,1723251044997,-730.67,0.00020821,3]
[334573535,1723251045008,-500.0,0.00020821,3]
[334573536,1723251045017,-508.67819515,0.00020821,3]
[334573537,1723251045028,-500.0,0.00020821,3]
[334573538,1723251045040,-1003.53,0.00020821,3]
[334573540,1723251045050,-502.85929365,0.00020821,3]
[334573542,1723251045060,-500.0,0.00020821,3]
[334573544,1723251045070,-309.96749478,0.00020821,3]
[334573545,1723251045079,-1185.74,0.00020821,3]
[334573546,1723251045089,-501.77004049,0.00020821,3]
[334573547,1723251045099,-500.0,0.00020821,3]
[334573548,1723251045109,-500.0,0.00020821,3]
[334573549,1723251045119,-501.38485607,0.00020821,3]
[334573550,1723251045128,-500.0,0.00020821,3]
[334573551,1723251045139,-500.0,0.00020821,3]
[334573552,1723251045152,-502.44052374,0.00020821,3]
[334573553,1723251045162,-500.0,0.00020821,3]
[334573554,1723251045173,-500.0,0.00020821,3]
[334573555,1723251045183,-500.0,0.00020821,3]
[334573556,1723251045194,-500.0,0.00020821,3]
[334573557,1723251045204,-500.0,0.00020821,3]
[334573558,1723251045214,-500.0,0.00020821,3]
[334573559,1723251045224,-500.0,0.00020821,3]
[334573560,1723251045234,-500.0,0.00020821,3]
[334573561,1723251045244,-500.0,0.00020821,3]
[334573562,1723251045253,-500.0,0.00020821,3]
[334573563,1723251045263,-502.76763406,0.00020821,3]
[334573564,1723251045273,-500.0,0.00020821,3]
[334573565,1723251045283,-500.0,0.00020821,3]
[334573566,1723251045293,-819.5,0.00020821,3]
[334573567,1723251045302,-500.0,0.00020821,3]
[334573568,1723251045312,-286.83026,0.00020821,2]
[334573569,1723251045321,-502.03853553,0.00020821,3]
[334573570,1723251045331,-500.0,0.00020821,3]
[334573571,1723251045340,-500.0,0.00020821,3]
[334573572,1723251045349,-500.0,0.00020821,3]
[334573573,1723251045359,-500.0,0.00020821,3]
[334573574,1723251045369,-500.0,0.00020821,3]
[334573575,1723251045380,-500.0,0.00020821,3]
[334573576,1723251045390,-500.0,0.00020821,3]
[334573577,1723251045400,-500.0,0.00020821,3]
[334573578,1723251045412,-500.0,0.00020821,3]
[334573579,1723251045423,-500.0,0.00020821,3]
[334573580,1723251045434,-889.42,0.00020821,3]
[334573581,1723251045446,-503.15978689,0.00020821,3]
[334573582,1723251045456,-500.0,0.00020821,3]
[334573583,1723251045466,-500.0,0.00020821,3]
[334573584,1723251045476,-500.0,0.00020821,3]
[334573585,1723251045486,-500.0,0.00020821,3]
[334573586,1723251045496,-500.0,0.00020821,3]
[334573587,1723251045507,-500.0,0.00020821,3]
[334573588,1723251045518,-500.0,0.00020821,3]
[334573589,1723251045529,-500.0,0.00020821,3]
[334573590,1723251045540,-500.0,0.00020821,3]
[334573591,1723251045551,-500.0,0.00020821,3]
[334573592,1723251045563,-698.58,0.00020821,3]
[334573593,1723251045574,-500.0,0.00020821,3]
[334573594,1723251045585,-501.88083935,0.00020821,3]
[334573595,1723251045595,-500.0,0.00020821,3]
[334573596,1723251045605,-500.0,0.00020821,3]
[334573597,1723251045615,-501.43510656,0.00020821,3]
[334573598,1723251045624,-500.0,0.00020821,3]
[334573599,1723251045634,-500.0,0.00020821,3]
[334573600,1723251045644,-500.0,0.00020821,3]
[334573601,1723251045654,-500.0,0.00020821,3]
[334573602,1723251045664,-500.0,0.00020821,3]
[334573603,1723251045674,-500.0,0.00020821,3]
[334573604,1723251045684,-500.0,0.00020821,3]
[334573605,1723251045693,-500.0,0.00020821,3]
[334573606,1723251045703,-500.0,0.00020821,3]
[334573607,1723251045713,-500.0,0.00020821,3]
[334573608,1723251045724,-500.0,0.00020821,3]
[334573609,1723251045734,-500.0,0.00020821,3]
[334573610,1723251045745,-1097.44,0.00020821,3]
[334573611,1723251045755,-179.30727125,0.00020821,3]
[334573612,1723251045767,-500.0,0.00020821,3]
[334573613,1723251045778,-500.0,0.00020821,3]
[334573614,1723251045788,-500.0,0.00020821,3]
[334573615,1723251045798,-648.97,0.00020821,3]
[334573616,1723251045807,-500.0,0.00020821,3]
[334573617,1723251045816,-648.97,0.00020821,3]
[334573618,1723251045826,-534.87216668,0.00020821,3]
[334573619,1723251045837,-648.97,0.00020821,3]
[334573620,1723251045847,-648.97,0.00020821,3]
[334573621,1723251045856,-648.97,0.00020821,3]
[334573622,1723251045866,-648.97,0.00020821,3]
[334573623,1723251045876,-648.97,0.00020821,3]
[334573624,1723251045885,-648.97,0.00020821,3]
[334573625,1723251045894,-648.97,0.00020821,3]
[334573626,1723251045904,-1872.42,0.00020821,3]
[334573627,1723251045913,-648.97,0.00020821,3]
[334573628,1723251045924,-500.0,0.00020821,3]
[334573629,1723251045933,-501.26612541,0.00020821,3]
[334573630,1723251045942,-500.0,0.00020821,3]
[334573631,1723251045951,-219.17334896,0.00020821,3]
[334573632,1723251045961,-502.76679517,0.00020821,3]
[334573633,1723251045970,-500.0,0.00020821,3]
[334573634,1723251045980,-716.52,0.00020821,3]
[334573635,1723251046099,-1143.23,0.00020821,3]
[334573636,1723251046109,-610.37127602,0.00020821,3]
[334573637,1723251046118,-500.0,0.00020821,3]
[334573638,1723251046128,-502.34758163,0.00020821,3]
[334573639,1723251046139,-500.0,0.00020821,3]
[334573640,1723251046151,-500.0,0.00020821,3]
[334573641,1723251046161,-500.0,0.00020821,3]
[334573642,1723251046171,-500.0,0.00020821,3]
[334573643,1723251046182,-500.0,0.00020821,3]
[334573644,1723251046194,-500.0,0.00020821,3]
[334573645,1723251046204,-500.0,0.00020821,3]
[334573646,1723251046216,-500.0,0.00020821,3]
[334573647,1723251046228,-500.0,0.00020821,3]
[334573648,1723251046239,-500.0,0.00020821,3]
[334573649,1723251046250,-501.82104964,0.00020821,3]
[334573650,1723251046260,-500.0,0.00020821,3]
[334573651,1723251046270,-500.0,0.00020821,3]
[334573653,1723251046282,-500.0,0.00020821,3]
[334573654,1723251046293,-500.0,0.00020821,3]
[334573655,1723251046304,-504.39858905,0.00020821,3]
[334573656,1723251046315,-500.0,0.00020821,3]
[334573657,1723251046324,-500.0,0.00020821,3]
[334573658,1723251046334,-577.88,0.00020821,3]
[334573659,1723251046346,-577.88,0.00020821,3]
[334573660,1723251046356,-500.0,0.00020821,3]
[334573662,1723251046367,-577.88,0.00020821,3]
[334573663,1723251046378,-500.0,0.00020821,3]
[334573664,1723251046390,-577.88,0.00020821,3]
[334573666,1723251046401,-577.88,0.00020821,3]
[334573667,1723251046411,-500.0,0.00020821,3]
[334573668,1723251046424,-577.88,0.00020821,3]
[334573669,1723251046435,-577.88,0.00020821,3]
[334573670,1723251046448,-577.88,0.00020821,3]
[334573671,1723251046460,-500.0,0.00020821,3]
[334573672,1723251046470,-12763.63,0.00020821,3]
[334573673,1723251046479,-577.88,0.00020821,3]
[334573674,1723251046489,-12763.63,0.00020821,3]
[334573675,1723251046499,-501.85154869,0.00020821,3]
[334573676,1723251046508,-12763.63,0.00020821,3]
[334573677,1723251046517,-12763.63,0.00020821,3]
[334573678,1723251046527,-12763.63,0.00020821,3]
[334573679,1723251046536,-577.88,0.00020821,3]
[334573680,1723251046546,-12763.63,0.00020821,3]
[334573681,1723251046555,-12763.63,0.00020821,3]
[334573682,1723251046565,-500.0,0.00020821,3]
[334573683,1723251046574,-12763.63,0.00020821,3]
[334573684,1723251046583,-502.30434738,0.00020821,3]
[334573685,1723251046593,-502.71415455,0.00020821,3]
[334573686,1723251046602,-500.0,0.00020821,3]
[334573687,1723251046613,-12763.63,0.00020821,3]
[334573688,1723251046623,-12763.63,0.00020821,3]
[334573689,1723251046632,-502.8568278,0.00020821,3]
[334573690,1723251046641,-792.18,0.00020821,3]
[334573691,1723251046651,-500.0,0.00020821,3]
[334573692,1723251046660,-1118.25,0.00020821,3]
[334573693,1723251046671,-519.7018447,0.00020821,3]
[334573694,1723251046690,-500.0,0.00020821,3]
[334573695,1723251046700,-500.0,0.00020821,3]
[334573696,1723251046710,-500.0,0.00020821,3]
[334573697,1723251046721,-500.0,0.00020821,3]
[334573698,1723251046730,-500.0,0.00020821,3]
[334573699,1723251046740,-6220.19,0.00020821,3]
[334573700,1723251046749,-500.91933236,0.00020821,3]
[334573701,1723251046758,-150.0,0.00020821,3]
[334573702,1723251046767,-1622.96,0.00020821,3]
[334573703,1723251046777,-500.0,0.00020821,3]
[334573704,1723251046786,-500.0,0.00020821,3]
[334573705,1723251046795,-500.0,0.00020821,3]
[334573706,1723251046804,-156.94617108,0.00020821,3]
[334573707,1723251046815,-582.4,0.00020821,3]
[334573708,1723251046824,-500.0,0.00020821,3]
[334573709,1723251046836,-500.0,0.00020821,3]
[334573710,1723251046845,-500.0,0.00020821,3]
[334573711,1723251046856,-500.0,0.00020821,3]
[334573712,1723251046866,-500.0,0.00020821,3]
[334573713,1723251046876,-1509.54,0.00020821,3]
[334573714,1723251046887,-500.0,0.00020821,3]
[334573715,1723251046898,-500.0,0.00020821,3]
[334573716,1723251046907,-500.0,0.00020821,3]
[334573717,1723251046918,-500.0,0.00020821,3]
[334573718,1723251046928,-500.0,0.00020821,3]
[334573719,1723251046938,-500.0,0.00020821,3]
[334573720,1723251046948,-500.0,0.00020821,3]
[334573721,1723251046957,-500.0,0.00020821,3]
[334573722,1723251046968,-500.0,0.00020821,3]
[334573723,1723251046979,-500.0,0.00020821,3]
[334573724,1723251046989,-500.0,0.00020821,3]
[334573725,1723251046998,-500.0,0.00020821,3]
[334573726,1723251047008,-500.0,0.00020821,3]
[334573727,1723251047018,-151.0,0.00020821,2]
[334573728,1723251047028,-413.00405726,0.00020821,3]
[334573729,1723251047461,-151.0,0.0001998,2]
[334573730,1723251047472,-151.0,0.0001999,2]
[334573731,1723251047482,-151.0,0.00020601,2]
[334573732,1723251047492,-150.0,0.00020696,2]
[334573733,1723251047501,-162.624856,0.0002072,2]
[334573734,1723251047512,-732.21594274,0.00020821,3]
[334573735,1723251047522,-500.0,0.00020821,3]
[334573736,1723251047532,-151.0,0.00020821,2]
[334573737,1723251047542,-151.0,0.00020821,2]
[334573738,1723251047552,-151.0,0.00020821,2]
[334573739,1723251047562,-500.0,0.00020821,3]
[334573740,1723251047572,-1051.23,0.00020821,3]
[334573741,1723251047582,-500.0,0.00020821,3]
[334573742,1723251047592,-500.0,0.00020821,3]
[334573743,1723251047603,-500.0,0.00020821,3]
[334573744,1723251047613,-200.0,0.00020821,3]
[334573745,1723251047622,-500.64473776,0.00020821,3]
[334573746,1723251047632,-500.0,0.00020821,3]
[334573747,1723251047642,-501.2924162,0.00020821,3]
[334573748,1723251047652,-1030.3,0.00020821,3]
[334573749,1723251047661,-500.0,0.00020821,3]
[334573750,1723251047671,-500.0,0.00020821,3]
[334573751,1723251047680,-743.99,0.00020821,3]
[334573752,1723251047690,-500.0,0.00020821,3]
[334573753,1723251047700,-500.0,0.00020821,3]
[334573754,1723251047710,-1745.78,0.00020821,3]
[334573755,1723251047719,-500.0,0.00020821,3]
[334573756,1723251047729,-500.0,0.00020821,3]
[334573757,1723251047738,-177.51011986,0.00020821,3]
[334573758,1723251047748,-500.0,0.00020821,3]
[334573759,1723251047758,-1397.85,0.00020821,3]
[334573760,1723251047767,-500.0,0.00020821,3]
[334573761,1723251047777,-501.63215571,0.00020821,3]
[334573762,1723251047787,-700.96,0.00020821,3]
[334573763,1723251047796,-500.0,0.00020821,3]
[334573764,1723251047806,-500.0,0.00020821,3]
[334573765,1723251047815,-500.0,0.00020821,3]
[334573766,1723251047825,-1141.48,0.00020821,3]
[334573767,1723251047834,-500.0,0.00020821,3]
[334573768,1723251047968,-500.0,0.00020821,3]
[334573769,1723251047979,-500.0,0.00020821,3]
[334573770,1723251047989,-500.0,0.00020821,3]
[334573771,1723251047999,-500.0,0.00020821,3]
[334573772,1723251048009,-1228.69,0.00020821,3]
[334573773,1723251048019,-505.60655188,0.00020821,3]
[334573774,1723251048028,-501.03587894,0.00020821,3]
[334573775,1723251048038,-500.0,0.00020821,3]
[334573776,1723251048049,-203.551812,0.00020821,2]
[334573777,1723251048059,-203.551812,0.00020821,2]
[334573778,1723251048069,-203.551812,0.00020821,2]
[334573779,1723251048078,-203.551812,0.00020821,2]
[334573780,1723251048088,-500.0,0.00020821,3]
[334573781,1723251048098,-203.551812,0.00020821,2]
[334573782,1723251048107,-500.0,0.00020821,3]
[334573783,1723251048117,-203.551812,0.00020821,2]
[334573784,1723251048127,-203.551812,0.00020821,2]
[334573785,1723251048136,-500.0,0.00020821,3]
[334573786,1723251048147,-500.0,0.00020821,3]
[334573787,1723251048159,-203.551812,0.00020821,2]
[334573788,1723251048172,-500.0,0.00020821,3]
[334573789,1723251048183,-500.0,0.00020821,3]
[334573790,1723251048193,-2428.2,0.00020821,3]
[334573791,1723251048203,-500.0,0.00020821,3]
[334573792,1723251048213,-1193.48,0.00020821,3]
[334573793,1723251048223,-500.0,0.00020821,3]
[334573794,1723251048236,-1352.32,0.00020821,3]
[334573795,1723251048246,-500.0,0.00020821,3]
[334573796,1723251048256,-500.0,0.00020821,3]
[334573797,1723251048266,-503.40983186,0.00020821,3]
[334573798,1723251048276,-500.0,0.00020821,3]
[334573799,1723251048286,-507.70486005,0.00020821,3]
[334573800,1723251048296,-500.0,0.00020821,3]
[334573801,1723251048306,-500.83236909,0.00020821,3]
[334573802,1723251048316,-500.0,0.00020821,3]
[334573803,1723251048326,-500.71873672,0.00020821,3]
[334573804,1723251048336,-500.0,0.00020821,3]
[334573805,1723251048346,-500.0,0.00020821,3]
[334573806,1723251048356,-416.50480071,0.00020821,3]
[334573807,1723251048366,-500.0,0.00020821,3]
[334573808,1723251048376,-500.0,0.00020821,3]
[334573809,1723251048386,-502.28424562,0.00020821,3]
[334573810,1723251048397,-500.0,0.00020821,3]
[334573811,1723251048406,-2167.73,0.00020821,3]
[334573812,1723251048415,-500.0,0.00020821,3]
[334573813,1723251048430,-503.63384658,0.00020821,3]
[334573814,1723251048441,-501.75804572,0.00020821,3]
[334573815,1723251048452,-500.0,0.00020821,3]
[334573816,1723251048461,-439.008899,0.00020821,2]
[334573817,1723251048471,-439.008899,0.00020821,2]
[334573818,1723251048481,-439.008899,0.00020821,2]
[334573819,1723251048490,-3529.66,0.00020821,3]
[334573820,1723251048501,-500.0,0.00020821,3]
[334573821,1723251048511,-500.0,0.00020821,3]
[334573822,1723251048520,-500.0,0.00020821,3]
[334573823,1723251048530,-500.0,0.00020821,3]
[334573824,1723251048540,-500.0,0.00020821,3]
[334573825,1723251048550,-439.008899,0.00020821,2]
[334573826,1723251048559,-439.008899,0.00020821,2]
[334573827,1723251048569,-439.00889,0.00020821,2]
[334573828,1723251048579,-500.0,0.00020821,3]
[334573829,1723251048589,-500.0,0.00020821,3]
[334573830,1723251048599,-501.62421405,0.00020821,3]
[334573831,1723251048609,-500.0,0.00020821,3]
[334573832,1723251048618,-500.0,0.00020821,3]
[334573833,1723251048629,-995.77,0.00020821,3]
[334573834,1723251048639,-500.0,0.00020821,3]
[334573835,1723251048650,-500.0,0.00020821,3]
[334573836,1723251048660,-500.0,0.00020821,3]
[334573837,1723251048672,-500.0,0.00020821,3]
[334573838,1723251048682,-500.0,0.00020821,3]
[334573839,1723251048692,-500.0,0.00020821,3]
[334573840,1723251048702,-500.0,0.00020821,3]
[334573841,1723251048712,-682.31,0.00020821,3]
[334573842,1723251048722,-959.3,0.00020821,3]
[334573843,1723251048731,-500.0,0.00020821,3]
[334573844,1723251048740,-500.0,0.00020821,3]
[334573845,1723251048750,-7268.57,0.00020821,3]
[334573846,1723251048759,-151.0,0.00020821,2]
[334573847,1723251048769,-151.0,0.00020821,2]
[334573848,1723251048779,-258.414496,0.00020821,2]
[334573849,1723251048788,-598.72,0.00020821,3]
[334573850,1723251048798,-500.0,0.00020821,3]
[334573851,1723251048808,-500.0,0.00020821,3]
[334573852,1723251048819,-1881.83,0.00020821,3]
[334573853,1723251048829,-390.86600594,0.00020821,3]
[334573854,1723251048838,-500.0,0.00020821,3]
[334573855,1723251048848,-844.92,0.00020821,3]
[334573856,1723251048857,-500.0,0.00020821,3]
[334573857,1723251048867,-2551.11,0.00020821,3]
[334573858,1723251048876,-500.0,0.00020821,3]
[334573859,1723251048886,-1000.2,0.00020821,3]
[334573860,1723251048896,-4986.72,0.00020821,3]
[334573861,1723251048905,-246.06013,0.00020821,2]
[334573862,1723251048914,-246.06013,0.00020821,2]
[334573863,1723251048927,-246.06013,0.00020821,2]
[334573864,1723251048936,-500.0,0.00020821,3]
[334573865,1723251048946,-500.0,0.00020821,3]
[334573866,1723251048961,-246.06013,0.00020821,2]
[334573867,1723251048978,-500.0,0.00020821,3]
[334573868,1723251048993,-246.06013,0.00020821,2]
[334573869,1723251049008,-246.06012,0.00020821,2]
[334573870,1723251049024,-500.0,0.00020821,3]
[334573871,1723251049039,-500.0,0.00020821,3]
[334573872,1723251049057,-1507.38,0.00020821,3]
[334573873,1723251049072,-500.0,0.00020821,3]
[334573874,1723251049086,-501.02476993,0.00020821,3]
[334573875,1723251049103,-500.0,0.00020821,3]
[334573876,1723251049117,-976.71,0.00020821,3]
[334573877,1723251049130,-500.0,0.00020821,3]
[334573878,1723251049143,-500.0,0.00020821,3]
[334573879,1723251049165,-1110.96,0.00020821,3]
[334573880,1723251049183,-500.0,0.00020821,3]
[334573881,1723251049203,-500.0,0.00020821,3]
[334573882,1723251049218,-1934.83,0.00020821,3]
[334573883,1723251049230,-500.0,0.00020821,3]
[334573884,1723251049255,-500.0,0.00020821,3]
[334573885,1723251049277,-500.0,0.00020821,3]
[334573886,1723251049293,-500.0,0.00020821,3]
[334573887,1723251049310,-500.0,0.00020821,3]
[334573888,1723251049331,-582.01,0.00020821,3]
[334573889,1723251049344,-711.02,0.00020821,3]
[334573890,1723251049359,-500.0,0.00020821,3]
[334573891,1723251049375,-610.16,0.00020821,3]
[334573892,1723251049393,-500.0,0.00020821,3]
[334573893,1723251049416,-500.0,0.00020821,3]
[334573894,1723251049438,-500.0,0.00020821,3]
[334573895,1723251049456,-500.0,0.00020821,3]
[334573896,1723251049472,-502.72775509,0.00020821,3]
[334573897,1723251049487,-503.01306963,0.00020821,3]
[334573898,1723251049502,-500.0,0.00020821,3]
[334573899,1723251049515,-500.0,0.00020821,3]
[334573900,1723251049529,-500.0,0.00020821,3]
[334573901,1723251049542,-500.0,0.00020821,3]
[334573902,1723251049556,-500.0,0.00020821,3]
[334573903,1723251049569,-1041.18,0.00020821,3]
[334573904,1723251049583,-500.0,0.00020821,3]
[334573905,1723251049597,-514.8687199,0.00020821,3]
[334573906,1723251049609,-500.0,0.00020821,3]
[334573907,1723251049622,-1014.56,0.00020821,3]
[334573908,1723251049636,-1082.07,0.00020821,3]
[334573909,1723251049650,-500.0,0.00020821,3]
[334573910,1723251049663,-500.0,0.00020821,3]
[334573911,1723251049677,-500.0,0.00020821,3]
[334573912,1723251049690,-638.31,0.00020821,3]
[334573913,1723251049703,-281.30454022,0.00020821,3]
[334573914,1723251049716,-500.0,0.00020821,3]
[334573915,1723251049729,-930.28,0.00020821,3]
[334573916,1723251049742,-1611.34,0.00020821,3]
[334573917,1723251049757,-500.0,0.00020821,3]
[334573918,1723251049770,-1207.5,0.00020821,3]
[334573919,1723251049784,-863.18,0.00020821,3]
[334573920,1723251049798,-552.62,0.00020821,3]
[334573921,1723251049811,-501.20008223,0.00020821,3]
[334573922,1723251049824,-500.0,0.00020821,3]
[334573923,1723251049839,-500.0,0.00020821,3]
[334573924,1723251049853,-500.0,0.00020821,3]
[334573925,1723251049866,-500.0,0.00020821,3]
[334573926,1723251049880,-500.0,0.00020821,3]
[334573927,1723251049893,-485.943462,0.00020821,2]
[334573928,1723251049905,-510.21600178,0.00020821,3]